bitfinex-derivatives/quotes_ETHF0:USTF0_20241020
["timestamp","ask_amount","ask_price","bid_price","bid_amount"]
[1729408377080,0.77214,2651.6,2651.3,5.80823892]
[1729408377760,0.395,2651.6,2651.3,5.43105892]
[1729408377965,0.37716,2651.5,2651.3,5.80823892]
[1729408378768,0.80486,2651.5,2651.3,5.80823892]
[1729408379374,0.4277,2651.5,2651.3,5.80823892]
[1729408379768,0.80486,2651.5,2651.3,5.80823892]
[1729408381461,0.37717,2651.4,2651.3,5.03625892]
[1729408381877,0.37717,2651.4,2651.3,4.049]
[1729408382071,0.8376,2651.5,2651.3,4.049]
[1729408382271,1.21477,2651.5,2651.3,4.049]
[1729408382477,1.21477,2651.5,2651.3,5.03625892]
[1729408382774,1.21477,2651.5,2651.3,4.049]
[1729408382970,1.21477,2651.5,2651.3,0.8412]
[1729408383174,1.21477,2651.5,2651.3,5.03625892]
[1729408383374,1.21477,2651.5,2651.3,5.41343892]
[1729408384679,0.77215,2651.6,2651.3,5.41343892]
[1729408384881,0.77215,2651.6,2651.4,0.37717]
[1729408385269,0.77215,2651.6,2651.4,1.36442892]
[1729408385465,0.77215,2651.6,2651.4,0.37717]
[1729408385669,0.77215,2651.6,2651.4,1.36442892]
[1729408386265,0.77215,2651.6,2651.4,0.37717]
[1729408386465,0.77215,2651.6,2651.4,1.36442892]
[1729408386670,0.77215,2651.6,2651.4,4.57222892]
[1729408387076,0.77215,2651.6,2651.4,1.36442892]
[1729408387395,0.77215,2651.6,2651.4,4.57222892]
[1729408389183,0.77215,2651.6,2651.4,4.97302892]
[1729408390075,0.395,2651.6,2651.4,4.97301892]
[1729408390377,0.77215,2651.6,2651.5,0.98725892]
[1729408390779,0.77215,2651.6,2651.4,4.97301892]
[1729408390977,0.77215,2651.6,2651.5,0.98725892]
[1729408391172,0.818,2651.9,2651.5,1.36441892]
[1729408391379,0.818,2651.9,2651.6,0.3909]
[1729408391768,0.37712,2651.8,2651.6,0.3909]
[1729408393770,0.818,2651.9,2651.6,0.3909]
[1729408393971,0.37713,2651.7,2651.6,0.3909]
[1729408394266,0.37713,2651.8,2651.6,0.3909]
[1729408395178,0.4097,2651.7,2651.6,0.3909]
[1729408395975,0.78683,2651.7,2651.6,0.3909]
[1729408397687,0.4097,2651.7,2651.6,0.3909]
[1729408397986,0.4097,2651.7,2651.4,5.08948838]
[1729408397987,0.37714,2651.6,2651.4,4.99385892]
[1729408399080,0.37714,2651.6,2651.4,1.78605892]
[1729408400180,0.4097,2651.7,2651.4,2.16322892]
[1729408400379,0.78684,2651.7,2651.5,0.37716]
[1729408400575,0.78684,2651.7,2651.5,1.36441892]
[1729408401586,0.4097,2651.7,2651.5,1.36441892]
[1729408401984,0.78683,2651.7,2651.5,0.37716]
[1729408403293,0.78683,2651.7,2651.5,1.36441892]
[1729408403677,0.78683,2651.7,2651.5,0.37716]
[1729408403889,0.78683,2651.7,2651.5,1.36441892]
[1729408404091,0.78683,2651.7,2651.5,0.37716]
[1729408404495,0.78683,2651.7,2651.5,1.36441892]
[1729408405792,0.78683,2651.7,2651.5,4.57221892]
[1729408406487,0.78683,2651.7,2651.5,1.36441892]
[1729408408779,0.78683,2651.7,2651.5,0.98725892]
[1729408409388,0.78683,2651.7,2651.5,1.36441892]
[1729408409791,0.78683,2651.7,2651.5,0.98725892]
[1729408410986,0.78683,2651.7,2651.4,5.86464838]
[1729408410987,0.78683,2651.7,2651.6,0.98725892]
[1729408417111,0.78683,2651.7,2651.4,5.86464838]
[1729408417112,0.78683,2651.7,2651.5,0.98725892]
[1729408419620,0.78683,2651.7,2651.5,1.36441892]
[1729408420321,0.78683,2651.7,2651.5,0.98725892]
[1729408420516,0.78064,2651.6,2651.5,0.98725892]
[1729408420819,1.18454,2651.6,2651.5,0.98725892]
[1729408421411,0.8074,2651.6,2651.5,0.98725892]
[1729408422119,1.18454,2651.6,2651.5,0.98725892]
[1729408422515,0.8074,2651.6,2651.5,0.98725892]
[1729408423926,1.18454,2651.6,2651.5,0.98725892]
[1729408424317,0.8074,2651.6,2651.5,0.98725892]
[1729408425117,0.8074,2651.6,2651.5,2.41636257]
[1729408425524,0.8074,2651.6,2651.5,2.41639222]
[1729408425829,0.8074,2651.6,2651.5,0.98725892]
[1729408426625,1.18454,2651.6,2651.5,0.98725892]
[1729408431532,0.37716,2651.5,2651.4,0.98725892]
[1729408431729,0.37716,2651.5,2651.4,1.42947724]
[1729408432132,0.37716,2651.5,2651.4,2.41559992]
[1729408432821,0.37716,2651.5,2651.4,0.98612268]
[1729408433016,0.37716,2651.5,2651.4,2.41557714]
[1729408435130,0.37716,2651.5,2651.4,0.98612268]
[1729408435338,0.37716,2651.5,2651.4,2.41544063]
[1729408436132,0.37716,2651.5,2651.4,1.54726442]
[1729408436627,0.37716,2651.5,2651.4,3.0281528]
[1729408437028,0.37716,2651.5,2651.4,3.4262528]
[1729408437438,0.4035,2651.6,2651.4,3.4262528]
[1729408437634,0.78065,2651.6,2651.5,0.98590602]
[1729408437929,0.78684,2651.7,2651.5,1.40010602]
[1729408438142,0.37714,2651.7,2651.6,0.98590602]
[1729408438725,0.8298,2651.9,2651.6,0.98590602]
[1729408439024,0.37713,2651.7,2651.6,0.98590602]
[1729408440234,0.37713,2651.7,2651.6,2.41489551]
[1729408441733,0.37713,2651.7,2651.6,5.62269551]
[1729408442535,0.37713,2651.7,2651.6,2.41489551]
[1729408442742,0.37713,2651.7,2651.6,5.62269551]
[1729408443438,0.37713,2651.7,2651.6,5.62263739]
[1729408443738,0.37713,2651.7,2651.6,4.19370602]
[1729408443937,0.37713,2651.7,2651.6,0.98590602]
[1729408444238,0.37713,2651.7,2651.6,5.62263354]
[1729408444631,0.37713,2651.7,2651.6,4.19370602]
[1729408444832,0.37713,2651.7,2651.6,5.62261908]
[1729408446335,0.37713,2651.8,2651.6,6.11760144]
[1729408446534,0.37713,2651.8,2651.7,0.98564655]
[1729408447235,0.37713,2651.8,2651.6,4.19344655]
[1729408447738,0.37713,2651.7,2651.6,4.19344655]
[1729408448441,0.37713,2651.7,2651.6,4.60844655]
[1729408449133,0.8298,2651.9,2651.6,4.60844655]
[1729408449334,0.37713,2651.8,2651.6,4.60844655]
[1729408449537,0.37713,2651.7,2651.6,4.60844655]
[1729408451135,0.37713,2651.7,2651.6,3.6228]
[1729408453133,0.37713,2651.7,2651.6,4.60844655]
[1729408453652,0.37713,2651.7,2651.6,3.6228]
[1729408453945,0.37713,2651.7,2651.6,3.2078]
[1729408455138,0.37713,2651.7,2651.6,4.19344655]
[1729408455336,0.37713,2651.7,2651.6,3.2078]
[1729408456853,0.37713,2651.7,2651.6,4.19344655]
[1729408457037,0.37713,2651.7,2651.6,3.2078]
[1729408457651,0.37713,2651.7,2651.5,1.77700655]
[1729408457848,0.37713,2651.7,2651.6,0.98564655]
[1729408458049,0.37713,2651.7,2651.6,3.2078]
[1729408458550,0.37713,2651.7,2651.6,4.19344655]
[1729408458744,0.37713,2651.7,2651.6,3.2078]
[1729408461349,0.37713,2651.7,2651.6,4.19344655]
[1729408461949,0.37713,2651.7,2651.6,0.98564655]
[1729408462141,0.37713,2651.7,2651.6,4.19344655]
[1729408462342,0.8298,2651.9,2651.6,4.19344655]
[1729408462541,0.37712,2651.8,2651.6,4.57058655]
[1729408464352,1.20691,2651.9,2651.7,0.37713]
[1729408464545,1.20691,2651.9,2651.7,0.98564655]
[1729408465650,1.20691,2651.9,2651.6,4.57057655]
[1729408466354,1.20691,2651.9,2651.7,0.98564655]
[1729408470356,1.20691,2651.9,2651.6,4.57057655]
[1729408470762,1.20691,2651.9,2651.6,4.19344655]
[1729408471243,1.20691,2651.9,2651.6,4.57058655]
[1729408474354,1.20691,2651.9,2651.6,1.36278655]
[1729408474555,1.20691,2651.9,2651.6,4.57058655]
[1729408475857,1.20691,2651.9,2651.6,1.36278655]
[1729408476160,1.20691,2651.9,2651.6,4.57058655]
[1729408476753,1.20691,2651.9,2651.6,4.19344655]
[1729408476956,1.20691,2651.9,2651.7,0.37713]
[1729408477149,1.2069,2651.9,2651.7,1.36277655]
[1729408477352,1.2069,2651.9,2651.8,0.3965]
[1729408478963,0.8298,2651.9,2651.8,0.3965]
[1729408479766,1.2069,2651.9,2651.8,0.3965]
[1729408479959,0.8298,2651.9,2651.8,0.3965]
[1729408481664,0.8298,2651.9,2651.8,1.38214655]
[1729408481966,1.2069,2651.9,2651.8,1.38214655]
[1729408482167,1.2069,2651.9,2651.8,0.3965]
[1729408482365,1.2069,2651.9,2651.8,1.38214655]
[1729408486170,1.2069,2651.9,2651.8,1.38214655]
[1729408486572,1.2069,2651.9,2651.8,0.3965]
[1729408487368,1.2069,2651.9,2651.8,1.38214655]
[1729408487862,1.2069,2651.9,2651.8,0.3965]
[1729408498178,1.20691,2651.9,2651.7,0.98564655]
[1729408498871,1.20691,2651.9,2651.6,1.76677655]
[1729408499172,0.37712,2651.8,2651.7,3.2078]
[1729408499568,0.8298,2651.9,2651.7,3.2078]
[1729408499569,1.20691,2651.9,2651.7,3.2078]
[1729408500171,0.37712,2651.8,2651.7,3.2078]
[1729408500481,0.37712,2651.8,2651.7,4.19344655]
[1729408504476,0.37712,2651.8,2651.7,0.98564655]
[1729408504677,0.37712,2651.8,2651.7,4.19344655]
[1729408505172,0.8298,2651.9,2651.7,4.19344655]
[1729408505173,1.20691,2651.9,2651.7,4.57057655]
[1729408505572,0.8298,2651.9,2651.7,4.19344655]
[1729408505776,0.37712,2651.8,2651.7,4.19344655]
[1729408506577,0.37712,2651.8,2651.7,5.63950711]
[1729408506981,0.37712,2651.8,2651.7,4.19344655]
[1729408507279,0.37712,2651.8,2651.7,5.63949994]
[1729408507586,0.37712,2651.8,2651.7,4.19344655]
[1729408509182,0.37712,2651.8,2651.7,0.98564655]
[1729408509485,0.37712,2651.8,2651.7,4.19344655]
[1729408509885,0.8298,2651.9,2651.7,4.19344655]
[1729408509886,1.20691,2651.9,2651.7,0.98564655]
[1729408510182,1.20691,2651.9,2651.7,4.19344655]
[1729408510379,0.37712,2651.8,2651.7,4.19344655]
[1729408511082,0.37712,2651.8,2651.7,0.98564655]
[1729408511282,0.37712,2651.8,2651.7,4.19344655]
[1729408511481,0.37712,2651.8,2651.7,0.98564655]
[1729408511791,0.37712,2651.8,2651.7,4.19344655]
[1729408514081,1.20692,2651.9,2651.7,4.19344655]
[1729408514990,0.37712,2651.8,2651.7,4.19344655]
[1729408515484,0.37712,2651.8,2651.7,5.63953978]
[1729408515978,0.37712,2651.8,2651.7,4.65389323]
[1729408516291,0.37712,2651.8,2651.7,5.63932657]
[1729408517180,0.37712,2651.8,2651.7,2.43152657]
[1729408517478,0.37712,2651.8,2651.7,5.63932657]
[1729408520490,0.37712,2651.8,2651.7,4.19323334]
[1729408522984,0.37712,2651.8,2651.7,0.98543334]
[1729408523486,0.37712,2651.8,2651.7,4.19323334]
[1729408524088,0.37712,2651.8,2651.7,0.98543334]
[1729408524289,0.37712,2651.8,2651.7,4.19323334]
[1729408530497,0.37712,2651.8,2651.7,5.63883426]
[1729408530700,0.37712,2651.8,2651.7,2.43103426]
[1729408531784,0.37712,2651.8,2651.7,5.63883426]
[1729408533391,0.37712,2651.8,2651.7,4.19323334]
[1729408533792,0.37712,2651.8,2651.7,5.63873674]
[1729408534101,0.37712,2651.8,2651.7,4.19323334]
[1729408535189,3.7712,2651.8,2651.6,0.98543334]
[1729408535391,0.76923,2651.7,2651.6,0.98543334]
[1729408535599,0.37714,2651.6,2651.5,0.98543334]
[1729408535906,1.22014,2651.6,2651.5,2.43099078]
[1729408537607,1.22014,2651.6,2651.5,0.98543334]
[1729408538496,0.37716,2651.5,2651.3,1.88568838]
[1729408538702,0.37716,2651.5,2651.4,1.4454419]
[1729408538900,0.37716,2651.5,2651.4,1.44554486]
[1729408539102,0.37716,2651.5,2651.4,2.43067642]
[1729408539612,0.37716,2651.5,2651.4,0.98513156]
[1729408539803,0.37719,2651.3,2651.2,0.98513156]
[1729408540705,0.37719,2651.3,2651.1,2.19863156]
[1729408541214,0.37719,2651.3,2651.1,2.57585156]
[1729408541899,0.3772,2651.3,2651.1,2.19863156]
[1729408546010,0.3772,2651.2,2651.1,2.19863156]
[1729408548610,0.843,2651.6,2651.1,2.19863156]
[1729408548808,0.3772,2651.3,2651.1,2.57585156]
[1729408549509,0.3772,2651.3,2651.1,2.19863156]
[1729408550311,0.3772,2651.3,2651.1,5.40643156]
[1729408550509,0.843,2651.6,2651.1,5.40643156]
[1729408550705,0.3772,2651.2,2651.1,5.40643156]
[1729408551214,0.3772,2651.2,2651.1,4.4213]
[1729408555815,0.3772,2651.2,2651.1,4.0229]
[1729408561816,0.3772,2651.2,2651.1,3.6205]
[1729408568122,0.3772,2651.2,2651.1,0.4127]
[1729408568322,0.3772,2651.2,2651.1,3.6205]
[1729408568517,0.3772,2651.2,2651.1,3.2078]
[1729408572343,1.7859,2651.6,2650.9,0.98513156]
[1729408572549,1.2261,2651.1,2650.8,4.60813156]
[1729408572742,0.37724,2650.9,2650.8,4.60813156]
[1729408573037,0.37724,2650.9,2650.8,4.19293156]
[1729408573344,0.37724,2650.9,2650.8,3.2078]
[1729408574843,4.14924,2650.9,2650.8,3.2078]
[1729408576137,0.37724,2650.9,2650.8,3.2078]
[1729408576845,4.14924,2650.9,2650.8,3.2078]
[1729408578445,0.37727,2650.7,2650.6,10.98595454]
[1729408578649,0.37727,2650.7,2650.6,14.19375454]
[1729408579138,1.19907,2650.7,2650.6,14.19375454]
[1729408579741,1.19907,2650.7,2650.6,3.2078]
[1729408580645,4.97187,2650.7,2650.6,3.2078]
[1729408581348,0.37734,2650.3,2650.1,3.6254]
[1729408581651,0.8019,2650.2,2650.1,3.6254]
[1729408581945,1.2162,2650.2,2650.1,3.6254]
[1729408582945,1.59354,2650.2,2650.1,3.6254]
[1729408583341,1.2162,2650.2,2650.1,3.6254]
[1729408584150,1.59354,2650.2,2650.1,3.6254]
[1729408584348,1.2162,2650.2,2650.1,3.6254]
[1729408584652,1.59354,2650.2,2650.1,3.6254]
[1729408598159,1.59354,2650.2,2650.1,3.2078]
[1729408599863,1.59354,2650.2,2649.9,0.3925]
[1729408599864,0.37737,2650.0,2649.9,0.3925]
[1729408609163,1.2162,2650.2,2649.8,0.3896]
[1729408609472,0.3892,2649.9,2649.8,0.767]
[1729408609773,0.76659,2649.9,2649.8,0.8176]
[1729408610369,0.3892,2649.9,2649.8,1.195]
[1729408611264,0.76659,2649.9,2649.8,0.8176]
[1729408611460,0.3892,2649.9,2649.8,0.8176]
[1729408612965,0.3892,2649.9,2649.8,4.4028]
[1729408614869,0.37737,2650.1,2649.8,4.4028]
[1729408615170,0.79817,2650.1,2649.8,4.4028]
[1729408615374,0.37737,2650.0,2649.8,4.4028]
[1729408617080,0.37737,2650.0,2649.8,1.195]
[1729408617366,0.37737,2650.0,2649.8,4.0254]
[1729408617566,0.37737,2650.0,2649.8,4.4028]
[1729408620378,0.37739,2649.9,2649.8,4.0254]
[1729408620579,0.4263,2649.9,2649.8,4.0254]
[1729408620872,0.4263,2649.9,2649.8,4.4028]
[1729408621267,0.4263,2649.9,2649.8,1.195]
[1729408623273,0.4263,2649.9,2649.8,2.18013156]
[1729408624377,0.37738,2650.0,2649.8,2.18013156]
[1729408626078,0.37738,2650.0,2649.8,5.38793156]
[1729408626476,0.37738,2650.0,2649.8,2.18013156]
[1729408626678,0.37738,2650.0,2649.8,5.38793156]
[1729408627879,0.37738,2650.0,2649.8,5.79763156]
[1729408630081,0.4208,2650.1,2649.8,4.19293156]
[1729408630385,0.76649,2649.9,2649.8,3.2078]
[1729408632184,0.76649,2649.9,2649.7,0.98513156]
[1729408632587,0.76649,2649.9,2649.7,4.19293156]
[1729408633084,0.3891,2649.9,2649.7,4.19293156]
[1729408633284,0.3774,2649.8,2649.7,4.19293156]
[1729408633483,0.7665,2649.9,2649.7,4.19293156]
[1729408634280,0.3774,2649.8,2649.7,4.19293156]
[1729408634781,0.3891,2649.9,2649.7,4.19293156]
[1729408634782,0.7665,2649.9,2649.7,5.63675104]
[1729408634995,0.7665,2649.9,2649.8,0.98513156]
[1729408638983,0.7665,2649.9,2649.7,0.98513156]
[1729408639190,0.79931,2649.8,2649.6,5.88460838]
[1729408639388,0.79931,2649.8,2649.7,2.43079039]
[1729408639589,0.4219,2649.8,2649.7,2.43079039]
[1729408640088,0.7993,2649.8,2649.7,2.43079039]
[1729408641085,0.7993,2649.8,2649.7,0.98650728]
[1729408644991,0.4219,2649.8,2649.7,0.98650728]
[1729408645195,0.4219,2649.8,2649.7,1.36392728]
[1729408645381,0.7665,2649.9,2649.7,2.80864415]
[1729408645382,0.3774,2649.9,2649.7,2.80864415]
[1729408645578,0.3774,2649.9,2649.8,0.98676881]
[1729408646478,0.7912,2649.9,2649.8,0.98676881]
[1729408648488,1.1983,2649.9,2649.8,0.98676881]
[1729408650093,1.1983,2649.9,2649.7,0.98676881]
[1729408650493,1.1983,2649.9,2649.8,0.98676881]
[1729408651797,1.1983,2649.9,2649.7,0.98676881]
[1729408651997,1.1983,2649.9,2649.8,0.98676881]
[1729408654209,0.8209,2649.9,2649.7,0.98676881]
[1729408654494,0.8209,2649.9,2649.6,5.88460838]
[1729408654495,1.19829,2649.9,2649.8,0.98676881]
[1729408654903,3.2078,2650.4,2649.8,0.98676881]
[1729408655101,0.37736,2650.1,2649.9,0.79778]
[1729408655296,0.37736,2650.1,2649.9,2.20216881]
[1729408655504,0.37736,2650.1,2649.9,2.57954881]
[1729408655695,0.37736,2650.1,2649.9,2.20216881]
[1729408655893,0.37737,2650.0,2649.9,2.20216881]
[1729408665018,0.8275,2650.3,2649.9,2.20216881]
[1729408665195,0.37737,2650.1,2649.9,2.20216881]
[1729408665399,0.37737,2650.0,2649.9,2.20216881]
[1729408666395,0.8275,2650.3,2649.9,2.20216881]
[1729408666594,0.37737,2650.1,2649.9,2.20216881]
[1729408666806,0.37734,2650.2,2649.9,2.20216881]
[1729408666995,0.37737,2650.1,2649.9,2.20216881]
[1729408667307,0.37735,2650.2,2650.0,3.58517]
[1729408667595,0.37736,2650.2,2650.0,4.19456881]
[1729408667797,0.8275,2650.3,2650.0,4.19456881]
[1729408668002,0.37736,2650.1,2650.0,3.2078]
[1729408668202,0.37736,2650.1,2650.0,4.66848617]
[1729408668395,0.37736,2650.1,2650.0,5.65528795]
[1729408668793,0.37736,2650.1,2650.0,4.19460178]
[1729408670699,0.8275,2650.3,2650.0,4.19460178]
[1729408670903,0.37735,2650.2,2650.0,4.19460178]
[1729408672302,0.37736,2650.1,2650.0,4.19460178]
[1729408672513,0.37736,2650.1,2650.0,0.98680178]
[1729408674503,0.37735,2650.2,2650.0,0.98680178]
[1729408675201,0.37736,2650.1,2650.0,0.98680178]
[1729408675611,0.37735,2650.2,2650.0,1.36417178]
[1729408675811,0.37735,2650.2,2650.0,0.98680178]
[1729408676314,0.37736,2650.1,2650.0,0.98680178]
[1729408676500,0.8275,2650.3,2650.0,0.98680178]
[1729408676703,0.37735,2650.2,2650.0,0.98680178]
[1729408677209,0.37736,2650.1,2649.9,2.57257178]
[1729408677404,0.37735,2650.2,2649.9,2.57257178]
[1729408677908,0.37735,2650.2,2650.0,3.2078]
[1729408679411,0.37736,2650.1,2650.0,3.2078]
[1729408680300,0.37736,2650.1,2650.0,4.19460178]
[1729408681502,0.8275,2650.3,2650.0,4.19460178]
[1729408681902,0.37734,2650.2,2650.0,4.19460178]
[1729408682111,0.37736,2650.1,2650.0,4.19460178]
[1729408682712,0.37736,2650.1,2650.0,0.98680178]
[1729408683112,0.37736,2650.1,2650.0,4.19460178]
[1729408684617,0.37736,2650.1,2650.0,3.2078]
[1729408686110,0.37737,2650.0,2649.9,1.40720178]
[1729408694221,0.37737,2650.0,2649.9,2.86742143]
[1729408695717,0.37737,2650.0,2649.9,1.40720178]
[1729408695913,0.37737,2650.0,2649.9,1.88074556]
[1729408696110,0.37737,2650.0,2649.9,3.36163394]
[1729408696618,0.37737,2650.0,2649.9,3.36167476]
[1729408697612,0.37737,2650.0,2649.9,6.56947476]
[1729408698120,0.37737,2650.0,2649.9,3.36167476]
[1729408699723,0.37736,2650.1,2649.9,3.73906476]
[1729408699911,0.37736,2650.1,2650.0,0.98683522]
[1729408700416,0.37736,2650.1,2650.0,2.44744786]
[1729408701607,0.8275,2650.3,2650.0,2.44744786]
[1729408701804,1.20484,2650.3,2650.1,0.98683522]
[1729408702214,0.37734,2650.2,2650.1,0.98683522]
[1729408702813,0.37734,2650.2,2650.0,0.98683522]
[1729408703013,1.20484,2650.3,2650.1,0.98683522]
[1729408703408,0.37734,2650.2,2650.1,0.98683522]
[1729408703612,0.37734,2650.2,2650.0,1.36419522]
[1729408704312,0.37734,2650.2,2650.0,4.57199522]
[1729408704909,0.37734,2650.2,2650.0,1.36419522]
[1729408705308,0.37734,2650.2,2650.0,4.19463522]
[1729408705519,1.20484,2650.3,2650.0,4.57199522]
[1729408705910,0.8275,2650.3,2650.0,4.57199522]
[1729408706105,0.37735,2650.2,2650.0,4.57199522]
[1729408706618,0.37735,2650.2,2650.0,4.19463522]
[1729408707011,0.37735,2650.2,2650.0,0.98683522]
[1729408707824,0.37735,2650.2,2650.1,0.98683522]
[1729408708210,0.37735,2650.2,2650.0,4.19463522]
[1729408708417,0.37735,2650.2,2650.0,0.98683522]
[1729408708616,0.37735,2650.2,2650.0,4.19463522]
[1729408709319,0.37735,2650.2,2650.1,0.98683522]
[1729408709513,0.37735,2650.2,2650.0,4.19463522]
[1729408709816,1.20484,2650.3,2650.1,0.98683522]
[1729408710217,0.37734,2650.2,2650.1,0.98683522]
[1729408710520,0.37734,2650.2,2650.1,2.44729394]
[1729408710721,0.37734,2650.2,2650.1,0.98683522]
[1729408710922,0.37734,2650.2,2650.1,2.44727648]
[1729408713418,0.37734,2650.2,2650.1,1.46044126]
[1729408713619,0.37734,2650.2,2650.1,2.44714648]
[1729408714428,0.37734,2650.2,2650.1,2.44712813]
[1729408714632,0.37734,2650.2,2650.1,2.44716036]
[1729408717022,0.37734,2650.2,2650.1,2.44715228]
[1729408717332,0.37734,2650.2,2650.1,0.98668687]
[1729408717523,0.37734,2650.2,2650.1,2.44714614]
[1729408717933,0.37734,2650.2,2650.1,0.98668687]
[1729408719427,0.37736,2650.1,2649.9,0.98668687]
[1729408719630,1.19287,2650.0,2649.9,0.98668687]
[1729408719826,1.60817,2650.0,2649.9,2.44736875]
[1729408720223,1.60817,2650.0,2649.9,0.98668687]
[1729408720627,0.37739,2649.9,2649.8,0.98668687]
[1729408720930,0.37739,2649.9,2649.8,2.44745007]
[1729408721535,0.37739,2649.9,2649.8,2.4473323]
[1729408722030,0.37739,2649.9,2649.8,0.98668687]
[1729408722231,0.37739,2649.9,2649.8,2.44732319]
[1729408722431,0.37739,2649.9,2649.8,0.98668687]
[1729408725042,0.37739,2649.9,2649.8,1.46037687]
[1729408725233,0.37739,2649.9,2649.8,2.44704928]
[1729408725428,0.37739,2649.9,2649.8,2.44699919]
[1729408726930,0.37739,2649.9,2649.7,4.19442232]
[1729408727135,0.37739,2649.9,2649.8,0.98662232]
[1729408727433,0.37739,2649.9,2649.7,4.19442232]
[1729408729136,0.37739,2649.9,2649.7,4.60232232]
[1729408731038,0.37739,2649.9,2649.7,4.97973232]
[1729408731237,0.37739,2649.9,2649.7,4.60232232]
[1729408732433,1.60819,2650.0,2649.7,4.97973232]
[1729408732741,0.37739,2649.9,2649.7,4.60232232]
[1729408732934,0.37739,2649.9,2649.7,4.97973232]
[1729408733132,0.37739,2649.9,2649.7,4.60232232]
[1729408733334,0.37739,2649.9,2649.7,1.39452232]
[1729408735637,0.37739,2649.9,2649.7,0.4079]
[1729408735833,0.37739,2649.9,2649.7,1.39452232]
[1729408736334,0.37739,2649.9,2649.7,0.4079]
[1729408736537,0.37739,2649.9,2649.7,1.39452232]
[1729408736740,0.37739,2649.9,2649.7,0.4079]
[1729408736937,0.37739,2649.9,2649.7,1.39452232]
[1729408737335,0.37739,2649.9,2649.7,0.4079]
[1729408743238,0.37739,2649.9,2649.7,0.78531]
[1729408743833,1.60819,2650.0,2649.7,3.99311]
[1729408744035,1.60819,2650.0,2649.7,4.97973232]
[1729408744239,1.2308,2650.0,2649.7,4.60232232]
[1729408744442,0.3774,2649.9,2649.7,4.60232232]
[1729408745041,0.3774,2649.9,2649.7,4.97973232]
[1729408745543,1.2308,2650.0,2649.7,4.97973232]
[1729408745742,1.60818,2650.0,2649.7,4.60232232]
[1729408746237,1.60818,2650.0,2649.8,0.3774]
[1729408746446,1.60818,2650.0,2649.7,4.97973232]
[1729408746745,1.60818,2650.0,2649.7,3.99311]
[1729408747242,0.37739,2649.9,2649.7,3.6157]
[1729408747633,0.37739,2649.9,2649.7,3.99311]
[1729408748640,0.37739,2649.9,2649.7,3.6157]
[1729408748842,0.37739,2649.9,2649.7,3.99311]
[1729408749042,0.37739,2649.9,2649.7,3.6157]
[1729408749444,0.37739,2649.9,2649.7,3.99311]
[1729408750637,0.37739,2649.9,2649.7,0.78531]
[1729408751745,1.2308,2650.0,2649.7,0.78531]
[1729408751947,1.60818,2650.0,2649.8,0.3774]
[1729408752450,1.60818,2650.0,2649.7,1.77193232]
[1729408753353,0.37739,2649.9,2649.7,3.99311]
[1729408754248,0.37739,2649.9,2649.7,0.78531]
[1729408754847,0.37739,2649.9,2649.7,3.99311]
[1729408755344,1.2308,2650.0,2649.7,3.99311]
[1729408755644,1.2308,2650.0,2649.8,0.3774]
[1729408755645,1.20478,2650.0,2649.8,0.3774]
[1729408755851,1.20478,2650.0,2649.8,1.2003]
[1729408756439,0.3774,2649.8,2649.7,3.2078]
[1729408761556,0.3774,2649.8,2649.4,0.98662232]
[1729408761756,0.37744,2649.5,2649.4,0.98662232]
[1729408761958,0.37744,2649.5,2649.3,0.98662232]
[1729408762160,0.37744,2649.5,2649.4,0.98662232]
[1729408763848,0.37744,2649.5,2649.4,4.19442232]
[1729408764160,0.37744,2649.5,2649.4,3.2078]
[1729408764657,0.37744,2649.5,2649.3,0.98662232]
[1729408765050,0.4252,2649.6,2649.3,0.98662232]
[1729408765462,0.37744,2649.5,2649.4,3.2078]
[1729408766350,0.4252,2649.6,2649.3,0.98662232]
[1729408766551,1.19806,2649.4,2649.2,1.37672232]
[1729408768250,0.8206,2649.4,2649.2,1.37672232]
[1729408768561,0.37747,2649.3,2649.2,1.37672232]
[1729408768961,0.76997,2649.3,2649.2,1.37672232]
[1729408769858,0.76997,2649.3,2649.2,0.98662232]
[1729408770077,0.76997,2649.3,2649.1,4.19442232]
[1729408770253,0.3925,2649.3,2649.1,4.19442232]
[1729408770454,0.37749,2649.2,2649.1,3.2078]
[1729408771965,4.15189,2649.2,2649.1,3.2078]
[1729408772666,4.15189,2649.2,2648.8,1.78502232]
[1729408772667,3.7744,2649.2,2648.8,1.78502232]
[1729408772866,0.79121,2649.1,2648.8,2.16256232]
[1729408773161,0.79121,2649.1,2649.0,3.2078]
[1729408774464,0.79121,2649.1,2648.8,2.16256232]
[1729408774764,0.79121,2649.1,2649.0,3.2078]
[1729408774957,0.4137,2649.1,2649.0,3.2078]
[1729408775259,0.7912,2649.1,2649.0,3.2078]
[1729408780469,0.7912,2649.1,2648.9,0.37753]
[1729408780768,0.7912,2649.1,2649.0,3.2078]
[1729408781960,0.7912,2649.1,2648.9,0.37753]
[1729408782160,0.7912,2649.1,2649.0,3.2078]
[1729408782866,0.3925,2649.3,2649.0,3.2078]
[1729408783066,0.76998,2649.3,2649.1,0.3977]
[1729408783367,0.8393,2649.4,2649.2,0.37748]
[1729408783559,0.8393,2649.4,2649.1,1.16599]
[1729408783560,1.21676,2649.4,2649.1,1.16599]
[1729408783764,1.21676,2649.4,2649.2,0.37748]
[1729408785563,1.21676,2649.4,2649.2,3.58528]
[1729408785871,0.8393,2649.4,2649.2,3.58528]
[1729408786064,0.37745,2649.5,2649.2,3.58528]
[1729408788869,0.37745,2649.5,2649.2,3.2078]
[1729408789068,0.37745,2649.5,2649.3,0.4173]
[1729408789372,0.37745,2649.5,2649.3,0.79477]
[1729408789565,0.37745,2649.5,2649.4,0.3929]
[1729408794065,0.3917,2649.6,2649.5,0.37744]
[1729408794265,0.37738,2650.0,2649.6,0.37742]
[1729408794470,0.37738,2650.0,2649.7,0.3904]
[1729408794671,0.4096,2649.9,2649.7,0.3904]
[1729408795659,0.4096,2649.9,2649.7,0.76781]
[1729408795861,0.4096,2649.9,2649.8,0.3774]
[1729408796070,0.37735,2650.2,2649.9,0.37738]